bitfinex/quotes_BTCUSD_20250619
["timestamp","ask_amount","ask_price","bid_price","bid_amount"]
[1750320784487,0.22288905,105030.0,105020.0,0.29462679]
[1750320784701,0.37310367,105030.0,105020.0,0.29462697]
[1750320784900,0.21902367,105030.0,105020.0,0.29462697]
[1750320785054,0.42854448,105030.0,105020.0,0.29462697]
[1750320785272,0.37310421,105030.0,105020.0,0.28510561]
[1750320785477,0.39596145,105030.0,105020.0,0.29462733]
[1750320786062,0.24188145,105030.0,105020.0,0.29462733]
[1750320786270,0.43572145,105030.0,105020.0,0.29462733]
[1750320786684,0.42620091,105030.0,105020.0,0.29462733]
[1750320787306,0.62620091,105030.0,105020.0,0.29462733]
[1750320787507,0.42620091,105030.0,105020.0,0.29462733]
[1750320787811,0.23236091,105030.0,105020.0,0.29462733]
[1750320788021,0.42588091,105030.0,105020.0,0.29462733]
[1750320788449,0.23236091,105030.0,105020.0,0.29462733]
[1750320788654,0.42588091,105030.0,105020.0,0.29462733]
[1750320790263,0.42588091,105030.0,105020.0,0.30414896]
[1750320790473,0.23236091,105030.0,105020.0,0.30414896]
[1750320790682,0.42588091,105030.0,105020.0,0.30414896]
[1750320790899,0.42588091,105030.0,105020.0,0.30414851]
[1750320791340,0.23545859,105030.0,105020.0,0.30414851]
[1750320791561,0.45444334,105030.0,105020.0,0.30414797]
[1750320791774,0.45444334,105030.0,105020.0,0.29462661]
[1750320791982,0.4449228,105030.0,105020.0,0.29462661]
[1750320792449,0.4449228,105030.0,105020.0,0.30414806]
[1750320792671,0.4514028,105030.0,105020.0,0.30414806]
[1750320792927,0.4054828,105030.0,105020.0,0.30414806]
[1750320793166,0.6054828,105030.0,105020.0,0.30414806]
[1750320793407,0.2514028,105030.0,105020.0,0.30414806]
[1750320793620,0.20553994,105030.0,105020.0,0.30414761]
[1750320794708,0.21506102,105030.0,105020.0,0.30414761]
[1750320794947,0.19601895,105030.0,105020.0,0.30414761]
[1750320795395,0.19601859,105030.0,105020.0,0.30414761]
[1750320796087,0.20553949,105030.0,105020.0,0.30414761]
[1750320796326,0.19601859,105030.0,105020.0,0.30414761]
[1750320797253,0.20553949,105030.0,105020.0,0.30414761]
[1750320797479,0.19601859,105030.0,105020.0,0.30414761]
[1750320797713,0.18268225,105030.0,105020.0,0.30414761]
[1750320801031,0.17316135,105030.0,105020.0,0.30414761]
[1750320801449,0.18268225,105030.0,105020.0,0.30414761]
[1750320804631,0.02860225,105030.0,105020.0,0.30414761]
[1750320804841,0.18264225,105030.0,105020.0,0.30414761]
[1750320805502,0.02860225,105030.0,105020.0,0.30414761]
[1750320805618,0.18264225,105030.0,105020.0,0.30414761]
[1750320805823,0.18264153,105030.0,105020.0,0.30414761]
[1750320806037,0.19216243,105030.0,105020.0,0.30414761]
[1750320807616,0.20168342,105030.0,105020.0,0.30414761]
[1750320808244,0.19216243,105030.0,105020.0,0.30414761]
[1750320809346,0.18264153,105030.0,105020.0,0.30414761]
[1750320809557,0.19216234,105030.0,105020.0,0.30414761]
[1750320811099,0.17312081,105030.0,105020.0,0.30414761]
[1750320811306,0.18264153,105030.0,105020.0,0.30414761]
[1750320811765,0.19216234,105030.0,105020.0,0.30414761]
[1750320817029,0.20168324,105030.0,105020.0,0.30414761]
[1750320819110,0.19216234,105030.0,105020.0,0.30414761]
[1750320819989,0.19216234,105030.0,105020.0,0.30544761]
[1750320821270,0.20168324,105030.0,105020.0,0.30544761]
[1750320823350,0.20168324,105030.0,105020.0,0.30444761]
[1750320823778,0.20168324,105030.0,105020.0,0.30344761]
[1750320823974,0.20168324,105030.0,105020.0,0.30544761]
[1750320824216,0.20168324,105030.0,105020.0,0.30844761]
[1750320830937,0.38258529,105030.0,105020.0,0.29892625]
[1750320831390,0.38258529,105030.0,105020.0,0.2894048]
[1750320831997,0.38128529,105030.0,105020.0,0.2881048]
[1750320832205,0.37302457,105030.0,105020.0,0.27858326]
[1750320832431,0.37302457,105030.0,105020.0,0.27858362]
[1750320832663,0.36350376,105030.0,105020.0,0.27858362]
[1750320832875,0.37685376,105030.0,105020.0,0.2690619]
[1750320833095,0.34446178,105030.0,105020.0,0.2785838]
[1750320833350,0.3673327,105030.0,105020.0,0.2785838]
[1750320833595,0.3959457,105030.0,105020.0,0.2785838]
[1750320833831,0.3959457,105030.0,105020.0,0.0691]
[1750320835438,0.3935457,105030.0,105020.0,0.0691]
[1750320838253,0.4329857,105030.0,105020.0,0.0691]
[1750320844101,0.4329857,105030.0,105020.0,0.0361]
[1750320845321,5.20050338,105030.0,105020.0,0.005]
[1750320845522,5.17131685,105030.0,105020.0,0.005]
[1750320846853,5.1623857,105030.0,105020.0,0.005]
[1750320847077,5.1713169,105030.0,105020.0,0.005]
[1750320849483,5.17131294,105030.0,105020.0,0.005]
[1750320850267,5.20049947,105030.0,105020.0,0.005]
[1750320850494,4.92936172,105020.0,105010.0,0.0629]
[1750320851808,4.98082581,105020.0,105010.0,0.0629]
[1750320852273,4.98082581,105020.0,105010.0,0.0659]
[1750320852502,4.95797972,105020.0,105010.0,0.0659]
[1750320853369,4.95797972,105020.0,105010.0,0.004]
[1750320853603,4.98082321,105020.0,105010.0,0.004]
[1750320854696,4.98082321,105020.0,105010.0,0.0369]
[1750320854925,4.98082321,105020.0,105010.0,0.0683]
[1750320856265,4.758018,105020.0,105010.0,0.0683]
[1750320856520,4.94845791,105020.0,105010.0,0.0683]
[1750320857192,4.95797972,105020.0,105010.0,0.0683]
[1750320859107,5.11197972,105020.0,105010.0,0.0683]
[1750320864558,4.94417972,105020.0,105010.0,0.0683]
[1750320872579,4.96703393,105020.0,105010.0,0.0683]
[1750320873774,4.96699393,105020.0,105010.0,0.0683]
[1750320892393,5.00635393,105020.0,105010.0,0.0683]
[1750320896215,5.07183418,105020.0,105010.0,0.02820001]
[1750320897524,5.07283418,105020.0,105010.0,0.02820001]
[1750320898319,5.07283418,105020.0,105010.0,0.02156001]
[1750320898750,5.07283325,105020.0,105010.0,0.01670002]
[1750320899559,5.07283325,105020.0,105010.0,0.01065002]
[1750320900188,5.07284733,105020.0,105010.0,0.01065002]
[1750320900394,4.75208845,105010.0,105000.0,0.0322]
[1750320900602,4.92887674,105010.0,105000.0,0.0322]
[1750320900813,4.96516934,105010.0,105000.0,0.0322]
[1750320901235,4.99379034,105010.0,105000.0,0.0322]
[1750320902227,4.99379034,105010.0,105000.0,0.0332]
[1750320903389,4.99131034,105010.0,105000.0,0.0653]
[1750320903799,4.98237653,105010.0,105000.0,0.0653]
[1750320907186,4.95501774,105010.0,105000.0,0.0653]
[1750320912049,4.80109774,105010.0,105000.0,0.0653]
[1750320912252,4.99437774,105010.0,105000.0,0.0653]
[1750320912465,4.80109774,105010.0,105000.0,0.0653]
[1750320912671,4.99437774,105010.0,105000.0,0.0653]
[1750320916196,0.00952226,105010.0,105000.0,0.28434651]
[1750320916424,0.01904317,105020.0,105010.0,0.29244737]
[1750320917498,0.02856471,105020.0,105010.0,0.29244737]
[1750320917717,0.02856471,105020.0,105010.0,0.28292529]
[1750320918418,0.23804851,105020.0,105010.0,0.27340303]
[1750320918637,0.34430178,105030.0,105020.0,0.0604]
[1750320918860,0.19042178,105030.0,105020.0,0.0604]
[1750320919090,0.34430178,105030.0,105020.0,0.0604]
[1750320920513,0.34630178,105030.0,105020.0,0.0604]
[1750320921569,0.34730178,105030.0,105020.0,0.0604]
[1750320921791,0.34730178,105030.0,105020.0,0.2603619]
[1750320921966,0.34730178,105030.0,105020.0,0.2698838]
[1750320922952,0.19342178,105030.0,105020.0,0.2698838]
[1750320923163,0.19342178,105030.0,105020.0,0.27940561]
[1750320925434,0.20294286,105030.0,105020.0,0.27940561]
[1750320925902,0.21246367,105030.0,105020.0,0.27940561]
[1750320926118,0.21246367,105030.0,105020.0,0.28892715]
[1750320926536,0.21246367,105030.0,105020.0,0.27940561]
[1750320926754,0.21246367,105030.0,105020.0,0.28892733]
[1750320927307,0.21246367,105030.0,105020.0,0.29844896]
[1750320929979,0.21246367,105030.0,105020.0,0.2698838]
[1750320930207,0.20294286,105030.0,105020.0,0.27940561]
[1750320930426,0.20294286,105030.0,105020.0,0.28892733]
[1750320932908,0.40294286,105030.0,105020.0,0.28892733]
[1750320933137,0.20294286,105030.0,105020.0,0.28892733]
[1750320933351,0.20294286,105030.0,105020.0,0.27940561]
[1750320936482,0.20294286,105030.0,105020.0,0.28892724]
[1750320937149,0.20294286,105030.0,105020.0,0.29844878]
[1750320937373,0.20294286,105030.0,105020.0,0.29844815]
[1750320937374,0.02204153,105030.0,105020.0,0.29844815]
[1750320938705,0.03156207,105030.0,105020.0,0.29844815]
[1750320939178,0.05060333,105030.0,105020.0,0.29844815]
[1750320939636,0.05060414,105030.0,105020.0,0.29844815]
[1750320941540,0.24102592,105030.0,105020.0,0.28892679]
[1750320941980,0.23150538,105030.0,105020.0,0.28892679]
[1750320943055,0.22198475,105030.0,105020.0,0.28892679]
[1750320945456,0.22198475,105030.0,105020.0,0.29844824]
[1750320950618,0.03156297,105030.0,105020.0,0.29844824]
[1750320950842,0.03156297,105030.0,105020.0,0.2984477]
[1750320951476,0.22198475,105030.0,105020.0,0.28892634]
[1750320952118,0.03156297,105030.0,105020.0,0.28892634]
[1750320952322,0.02204189,105030.0,105020.0,0.2984477]
[1750320952553,0.003,105030.0,105020.0,0.2984477]
[1750320952790,0.03156153,105030.0,105020.0,0.2984477]
[1750320953692,0.03156153,105030.0,105020.0,0.4522877]
[1750320957026,0.04108243,105030.0,105020.0,0.4522877]
[1750320957251,0.03156153,105030.0,105020.0,0.4522877]
[1750320957801,0.23150421,105030.0,105020.0,0.28892634]
[1750320958240,0.04108243,105030.0,105020.0,0.2984477]
[1750320958452,0.05060342,105030.0,105020.0,0.2984477]
[1750320958665,0.04108243,105030.0,105020.0,0.2984477]
[1750320958940,0.03156153,105030.0,105020.0,0.2984477]
[1750320959178,0.04108234,105030.0,105020.0,0.2984477]
[1750320959390,0.05060324,105030.0,105020.0,0.2984477]
[1750320960056,0.05060387,105030.0,105020.0,0.2984477]
[1750320961437,0.04108288,105030.0,105020.0,0.2984477]
[1750320963019,0.04108288,105030.0,105020.0,0.4522477]
[1750320963222,0.05060387,105030.0,105020.0,0.4522477]
[1750320965351,0.0506045,105030.0,105020.0,0.4522477]
[1750320966825,0.0506045,105030.0,105020.0,0.44272634]
[1750320967964,0.22198475,105030.0,105020.0,0.22372199]
[1750320968170,0.22198475,105030.0,105020.0,0.4141619]
[1750320968383,0.22198475,105030.0,105020.0,0.4236838]
[1750320968813,0.22198475,105030.0,105020.0,0.43320561]
[1750320969061,0.24485486,105030.0,105020.0,0.43320561]
[1750320969706,0.22198475,105030.0,105020.0,0.43320561]
[1750320969913,0.24485457,105030.0,105020.0,0.43320561]
[1750320970116,0.24485462,105030.0,105020.0,0.43320561]
[1750320970344,0.22198475,105030.0,105020.0,0.43320561]
[1750320970561,0.24485479,105030.0,105020.0,0.43320561]
[1750320971412,0.21950475,105030.0,105020.0,0.43320561]
[1750320973196,0.21950475,105030.0,105020.0,0.44272733]
[1750320974032,0.01956189,105030.0,105020.0,0.45224833]
[1750320974249,0.02908297,105030.0,105020.0,0.45224833]
[1750320974467,0.02908189,105030.0,105020.0,0.45224833]
[1750320975008,0.21950367,105030.0,105020.0,0.44272697]
[1750320975683,0.21950367,105030.0,105020.0,0.45224851]
[1750320976543,0.21950367,105030.0,105020.0,0.45224806]
[1750320976801,0.02908189,105030.0,105020.0,0.45224761]
[1750320981933,0.03860288,105030.0,105020.0,0.45224761]
[1750320983119,0.02908189,105030.0,105020.0,0.45224761]
[1750320984506,0.0290818,105030.0,105020.0,0.45224761]
[1750320985148,0.0386027,105030.0,105020.0,0.45224761]
[1750320986358,0.0290818,105030.0,105020.0,0.45224761]
[1750320987522,0.0386027,105030.0,105020.0,0.45224761]
[1750320990259,0.00052,105030.0,105020.0,0.45224761]
[1750320990480,0.01956099,105030.0,105020.0,0.45224761]
[1750320990949,0.0195609,105030.0,105020.0,0.45224761]
[1750320991163,0.02908162,105030.0,105020.0,0.45224761]
[1750320991597,0.03860252,105030.0,105020.0,0.45224761]
[1750320994480,0.03860243,105030.0,105020.0,0.45224761]
[1750320994987,0.04812333,105030.0,105020.0,0.45224761]
[1750320997317,0.03860243,105030.0,105020.0,0.45224761]
[1750320997654,0.04812333,105030.0,105020.0,0.45224761]
[1750320999725,0.04812396,105030.0,105020.0,0.45224761]
[1750321000452,0.01956081,105030.0,105020.0,0.45224761]
[1750321000664,0.02908153,105030.0,105020.0,0.45224761]
[1750321001083,0.03860234,105030.0,105020.0,0.45224761]
[1750321001372,0.04812324,105030.0,105020.0,0.45224761]
[1750321003471,0.57854502,105030.0,105020.0,0.28892625]
[1750321003697,0.38812396,105030.0,105020.0,0.45220761]
[1750321004109,0.36908216,105030.0,105020.0,0.45220761]
[1750321005790,0.35956126,105030.0,105020.0,0.45220761]
[1750321006238,0.36908216,105030.0,105020.0,0.45220761]
[1750321006522,0.36908207,105030.0,105020.0,0.45220761]
[1750321006878,0.35956126,105030.0,105020.0,0.45220761]
[1750321007097,0.19109654,105030.0,105020.0,0.45220761]
[1750321007303,0.21013744,105030.0,105020.0,0.45220761]
[1750321007715,0.23874935,105030.0,105020.0,0.45220761]
[1750321007892,0.24827007,105030.0,105020.0,0.45220761]
[1750321008102,0.23874935,105030.0,105020.0,0.45220761]
[1750321008531,0.23874926,105030.0,105020.0,0.45220761]
[1750321008734,0.2482698,105030.0,105020.0,0.45220761]
[1750321009346,0.22922881,105030.0,105020.0,0.45220761]
[1750321009569,0.19109654,105030.0,105020.0,0.45220761]
[1750321010677,0.19109654,105030.0,105020.0,0.45320761]
[1750321010941,0.09576064,105040.0,105030.0,0.21898394]
[1750321011151,0.09576064,105040.0,105030.0,0.28408394]
[1750321011152,0.29576064,105040.0,105030.0,0.28408394]
[1750321011778,0.30528064,105040.0,105030.0,0.28408394]
[1750321011987,0.29576064,105040.0,105030.0,0.28408394]
[1750321012443,0.30528055,105040.0,105030.0,0.28408394]
[1750321013102,0.30628055,105040.0,105030.0,0.28408394]
[1750321013436,0.29676064,105040.0,105030.0,0.28408394]
[1750321015747,0.29676054,105040.0,105030.0,0.28408394]
[1750321015958,0.28724082,105040.0,105030.0,0.28408394]
[1750321017189,0.29676064,105040.0,105030.0,0.28408394]
[1750321017798,0.28724082,105040.0,105030.0,0.28408394]
[1750321017996,0.26820174,105040.0,105030.0,0.28408394]
[1750321018229,0.03959174,105040.0,105030.0,0.28408394]
[1750321018974,0.0491111,105040.0,105030.0,0.28408394]
[1750321019293,0.05763073,105040.0,105030.0,0.28408394]
[1750321019720,0.05763073,105040.0,105030.0,0.28508394]
[1750321020385,0.06715064,105040.0,105030.0,0.28508394]
[1750321020804,0.06715064,105040.0,105030.0,0.28608394]
[1750321022431,0.07667064,105040.0,105030.0,0.28608394]
[1750321023268,0.06715064,105040.0,105030.0,0.28608394]
[1750321024071,0.07667064,105040.0,105030.0,0.28608394]
[1750321025445,0.08619073,105040.0,105030.0,0.28608394]
[1750321026294,0.07667064,105040.0,105030.0,0.28608394]
[1750321028759,0.06715064,105040.0,105030.0,0.28608394]
[1750321029927,0.06715055,105040.0,105030.0,0.28608394]
[1750321031791,0.07667055,105040.0,105030.0,0.28608394]
[1750321031965,0.07667046,105040.0,105030.0,0.28608394]
[1750321032623,0.08619046,105040.0,105030.0,0.28608394]
[1750321033587,0.08619119,105040.0,105030.0,0.28608394]
[1750321035261,0.27659484,105040.0,105030.0,0.26704277]
[1750321035467,0.26707521,105040.0,105030.0,0.43976421]
[1750321035668,0.29568421,105040.0,105030.0,0.43976421]
[1750321036685,0.29568421,105040.0,105030.0,0.44928475]
[1750321037116,0.29568457,105040.0,105030.0,0.44928475]
[1750321039351,0.29484457,105040.0,105030.0,0.44928475]
[1750321040294,0.10444092,105040.0,105030.0,0.4588052]
[1750321041760,0.09492074,105040.0,105030.0,0.4588052]
[1750321041972,0.08540065,105040.0,105030.0,0.4588052]
[1750321042187,0.08540019,105040.0,105030.0,0.4588052]
[1750321042398,0.08539973,105040.0,105030.0,0.4588052]
[1750321044145,0.09491945,105040.0,105030.0,0.4588052]
[1750321045025,0.08539973,105040.0,105030.0,0.4588052]
[1750321045447,0.05679073,105040.0,105030.0,0.4588052]
[1750321046257,0.03775174,105040.0,105030.0,0.4588052]
[1750321046462,0.04727119,105040.0,105030.0,0.4588052]
[1750321046675,0.00951945,105040.0,105030.0,0.4588052]
[1750321047076,0.27044848,105050.0,105040.0,0.28296337]
[1750321047513,0.44758969,105050.0,105040.0,0.28296337]
[1750321047981,0.45710896,105050.0,105040.0,0.28296337]
[1750321048380,0.45810896,105050.0,105040.0,0.28296337]
[1750321049569,0.47507626,105050.0,105040.0,0.28296337]
[1750321050252,0.47507626,105050.0,105040.0,0.29248291]
[1750321050687,0.28469066,105050.0,105040.0,0.29248291]
[1750321050904,0.27517139,105050.0,105040.0,0.29248291]
[1750321053067,0.28469066,105050.0,105040.0,0.29248291]
[1750321053779,0.47507619,105050.0,105040.0,0.28296337]
[1750321055158,0.47507619,105050.0,105040.0,0.27344374]
[1750321055359,0.45603828,105050.0,105040.0,0.27344374]
[1750321056914,0.43699983,105050.0,105040.0,0.26392383]
[1750321058292,0.43699983,105050.0,105040.0,0.19992383]
[1750321058503,0.43699983,105050.0,105040.0,0.20944392]
[1750321061111,0.43699983,105050.0,105040.0,0.24024392]
[1750321061520,0.45985487,105050.0,105040.0,0.24024392]
[1750321061737,0.25985487,105050.0,105040.0,0.24024392]
[1750321063945,0.25985487,105050.0,105040.0,0.27024392]
[1750321064367,0.25985487,105050.0,105040.0,0.0608]
[1750321065542,0.46937405,105050.0,105040.0,0.25120365]
[1750321065755,0.46937405,105050.0,105040.0,0.27024392]
[1750321065756,0.47889402,105050.0,105040.0,0.27024392]
[1750321065958,0.47889402,105050.0,105040.0,0.28928383]
[1750321066241,0.45603792,105050.0,105040.0,0.29880355]
[1750321066457,0.47889399,105050.0,105040.0,0.29880355]
[1750321066662,0.47889446,105050.0,105040.0,0.29880355]
[1750321066877,0.27889446,105050.0,105040.0,0.29880355]
[1750321067107,0.27889446,105050.0,105040.0,0.43336392]
[1750321067317,0.27889446,105050.0,105040.0,0.36304392]
[1750321067521,0.27889446,105050.0,105040.0,0.1536]
[1750321067737,0.26937555,105050.0,105040.0,0.1536]
[1750321068169,0.26937555,105050.0,105040.0,0.00952018]
[1750321068413,0.24076855,105050.0,105040.0,0.00952018]
[1750321068819,0.01903973,105040.0,105030.0,0.44600376]
[1750321069453,0.02855973,105040.0,105030.0,0.44600376]
[1750321069859,0.02855945,105040.0,105030.0,0.44600376]
[1750321070312,0.02855945,105040.0,105030.0,0.44700376]
[1750321070527,0.04759963,105040.0,105030.0,0.42896313]
[1750321070752,0.23800328,105040.0,105030.0,0.42896313]
[1750321071192,0.20739577,105050.0,105040.0,0.25470365]
[1750321071419,0.23595313,105050.0,105040.0,0.27374365]
[1750321071682,0.43595313,105050.0,105040.0,0.28326337]
[1750321072726,0.45881477,105050.0,105040.0,0.28326337]
[1750321072965,0.25981477,105050.0,105040.0,0.28326337]
[1750321073387,0.25981477,105050.0,105040.0,0.292783]
[1750321073599,0.23695313,105050.0,105040.0,0.292783]
[1750321073812,0.25981564,105050.0,105040.0,0.292783]
[1750321075247,0.45981564,105050.0,105040.0,0.292783]
[1750321075483,0.25981564,105050.0,105040.0,0.292783]
[1750321077167,0.25981564,105050.0,105040.0,0.28326337]
[1750321077658,0.25981564,105050.0,105040.0,0.27374365]
[1750321077867,0.25029673,105050.0,105040.0,0.27374365]
[1750321079385,0.24077755,105050.0,105040.0,0.0643]
[1750321079614,0.24077755,105050.0,105040.0,0.21786]
[1750321080005,0.26938555,105050.0,105040.0,0.21786]
[1750321080247,0.26938555,105050.0,105040.0,0.0643]
[1750321080457,0.25986628,105050.0,105040.0,0.15356]
[1750321080671,0.00952,105040.0,105030.0,0.44486466]
[1750321081084,0.01904018,105040.0,105030.0,0.44486466]
[1750321081798,0.20944383,105040.0,105030.0,0.44486466]
[1750321082020,0.20944383,105040.0,105030.0,0.44586466]
[1750321082641,0.21896392,105040.0,105030.0,0.44686466]
[1750321083165,0.02856027,105040.0,105030.0,0.44686466]
[1750321083600,0.03808009,105040.0,105030.0,0.44686466]
[1750321084349,0.03807945,105040.0,105030.0,0.44686466]
[1750321086173,0.11506516,105050.0,105030.0,0.45638502]
[1750321086407,0.1411066,105050.0,105030.0,0.45638502]
[1750321086811,0.00952,105040.0,105030.0,0.45638502]
[1750321087452,0.01903982,105040.0,105030.0,0.45538502]
[1750321088107,0.01903982,105040.0,105030.0,0.45438502]
[1750321088548,0.02855936,105040.0,105030.0,0.45438502]
[1750321089392,0.02855936,105040.0,105030.0,0.45538502]
[1750321089591,0.02855936,105040.0,105030.0,0.45638502]
[1750321094972,0.03807945,105040.0,105030.0,0.45638502]
[1750321095449,0.2284831,105040.0,105030.0,0.27426367]
[1750321095621,0.2284831,105040.0,105030.0,0.43734439]
[1750321095847,0.20944374,105040.0,105030.0,0.002]
[1750321096065,4.76152374,105040.0,105030.0,0.15556]
[1750321096276,4.82193529,105040.0,105030.0,0.002]
[1750321097105,4.81300237,105040.0,105030.0,0.002]
[1750321097336,4.565425,105040.0,105030.0,0.002]
[1750321097554,4.75582865,105040.0,105030.0,0.002]
[1750321099163,0.21901465,105040.0,105030.0,0.27456385]
[1750321099411,0.41901465,105040.0,105030.0,0.28408475]
[1750321102224,0.41901465,105040.0,105030.0,0.27456385]
[1750321105289,0.41901465,105040.0,105030.0,0.28408475]
[1750321107110,0.41901465,105040.0,105030.0,0.27456385]
[1750321112440,0.41901465,105040.0,105030.0,0.07462108]
[1750321113068,0.41901465,105040.0,105030.0,0.0651]
[1750321115521,4.73071323,105040.0,105030.0,0.07462108]
[1750321115746,0.39040365,105040.0,105030.0,0.07462108]
[1750321116010,0.39040365,105040.0,105030.0,0.27456385]
[1750321116225,0.39040365,105040.0,105030.0,0.29360556]
[1750321116715,0.39992383,105040.0,105030.0,0.29360556]
[1750321116913,0.40944374,105040.0,105030.0,0.30312628]
[1750321120350,0.40944374,105040.0,105030.0,0.30312574]
[1750321121209,0.40944374,105040.0,105030.0,0.2936052]
[1750321124945,0.40944374,105040.0,105030.0,0.28408448]
[1750321126773,0.39992383,105040.0,105030.0,0.25552178]
[1750321126998,0.39040365,105040.0,105030.0,0.0651]
[1750321127205,0.41326793,105040.0,105030.0,0.0651]
[1750321128050,0.24189881,105040.0,105030.0,0.0651]
[1750321129602,0.44189881,105040.0,105030.0,0.0651]
[1750321129851,0.27050981,105040.0,105030.0,0.0651]
[1750321130181,0.27050981,105040.0,105030.0,0.0629]
[1750321130860,0.27050981,105040.0,105030.0,0.0553]
[1750321132311,0.27050981,105040.0,105030.0,0.0531]
[1750321133665,0.19994268,105030.0,105020.0,0.0304]
[1750321133881,0.19994268,105030.0,105020.0,0.18388]
[1750321134088,0.19994268,105030.0,105020.0,0.0304]
[1750321134523,0.19994268,105030.0,105020.0,0.18388]
[1750321134737,0.39994268,105030.0,105020.0,0.0304]
[1750321134984,0.39994268,105030.0,105020.0,0.0324]
[1750321135408,0.39994268,105030.0,105020.0,0.0639]
[1750321135632,0.39994268,105030.0,105020.0,0.0659]
[1750321136686,0.39994268,105030.0,105020.0,0.0639]
[1750321137035,0.39994268,105030.0,105020.0,0.0629]
[1750321137684,0.39994268,105030.0,105020.0,0.0639]
[1750321138323,4.73370668,105030.0,105020.0,0.0639]
[1750321145759,4.73370668,105030.0,105020.0,0.26386181]
[1750321146382,4.72418578,105030.0,105020.0,0.25433991]
[1750321146596,4.488882,105030.0,105020.0,0.0639]
[1750321146817,0.19042178,105030.0,105020.0,0.0639]
[1750321147039,4.67930378,105030.0,105020.0,0.0639]
[1750321154682,4.488882,105030.0,105020.0,0.0639]
[1750321154938,4.67930378,105030.0,105020.0,0.0639]
[1750321157970,4.70791778,105030.0,105020.0,0.0639]
[1750321164746,4.73078874,105030.0,105020.0,0.0639]
[1750321166582,4.88422874,105030.0,105020.0,0.0639]
[1750321170723,4.73078874,105030.0,105020.0,0.0639]
[1750321172572,4.88422874,105030.0,105020.0,0.0639]
[1750321190719,4.73078874,105030.0,105020.0,0.0639]
[1750321201169,0.19996172,105020.0,105010.0,0.0629]
[1750321201389,4.84220372,105020.0,105010.0,0.0629]
[1750321202477,4.87081972,105020.0,105010.0,0.0629]
[1750321205667,0.19998086,105010.0,105000.0,0.0632]
[1750321205897,4.87934005,105010.0,105000.0,0.0632]
[1750321206110,0.19045805,105010.0,105000.0,0.0632]
[1750321206317,0.21907605,105010.0,105000.0,0.0632]
[1750321207415,0.21907605,105010.0,105000.0,0.0652]
[1750321207630,0.21907605,105010.0,105000.0,0.0672]
[1750321208070,0.21907605,105010.0,105000.0,0.0652]
[1750321209157,0.21907605,105010.0,105000.0,0.0632]
[1750321213826,0.21907605,105010.0,105000.0,0.04522229]
[1750321216869,4.70795805,105010.0,105000.0,0.0328]
[1750321217301,4.68888181,105000.0,104990.0,0.0624]
[1750321217523,0.20952334,105000.0,104990.0,0.27194366]
[1750321217780,0.40952334,105000.0,104990.0,0.28146819]
[1750321218009,0.40952334,105000.0,104990.0,0.3005168]
[1750321218452,0.41904705,105000.0,104990.0,0.30251626]
[1750321218661,0.41904705,105000.0,104990.0,0.30251572]
[1750321219098,0.42857085,105000.0,104990.0,0.29299164]
[1750321219520,0.42857085,105000.0,104990.0,0.29499164]
[1750321219960,0.42857085,105000.0,104990.0,0.28546747]
[1750321220809,0.42857085,105000.0,104990.0,0.29499164]
[1750321221025,0.21904715,105000.0,104990.0,0.30451572]
[1750321221229,0.20952326,105000.0,104990.0,0.30451572]
[1750321221439,0.22857032,105000.0,104990.0,0.30451572]
[1750321222335,0.23809412,105000.0,104990.0,0.29499164]
[1750321223029,0.42857031,105000.0,104990.0,0.29499164]
[1750321223516,0.43809393,105000.0,104990.0,0.29499164]
[1750321223918,0.42857013,105000.0,104990.0,0.29499164]
[1750321224161,0.42857013,105000.0,104990.0,0.30451572]
[1750321226437,0.23809394,105000.0,104990.0,0.30451572]
[1750321226641,0.43809393,105000.0,104990.0,0.29499164]
[1750321228132,0.42857067,105000.0,104990.0,0.29499164]
[1750321228856,0.42857067,105000.0,104990.0,0.27594321]
[1750321231473,0.42857067,105000.0,104990.0,0.26641886]
[1750321231649,0.41904732,105000.0,104990.0,0.2759433]
[1750321231860,0.41904732,105000.0,104990.0,0.28546765]
[1750321232924,0.41904732,105000.0,104990.0,0.29499191]
[1750321233425,0.41904732,105000.0,104990.0,0.30451608]
[1750321234328,0.40952352,105000.0,104990.0,0.30451608]
[1750321235431,0.23814053,105010.0,105000.0,0.28334678]
[1750321235648,0.26670814,105010.0,105000.0,0.28334696]
[1750321235867,0.26670814,105010.0,105000.0,0.29287022]
[1750321236085,0.27623104,105010.0,105000.0,0.28334696]
[1750321236507,0.27623104,105010.0,105000.0,0.30239357]
[1750321236741,0.26670814,105010.0,105000.0,0.30239294]
[1750321236978,0.00952226,105010.0,105000.0,0.45643294]
[1750321237207,0.4609696,105020.0,105010.0,0.27270321]
[1750321237424,0.2609696,105020.0,105010.0,0.27270321]
[1750321237882,0.2609696,105020.0,105010.0,0.2727034]
[1750321238664,0.2629696,105020.0,105010.0,0.2727034]
[1750321239070,0.2639696,105020.0,105010.0,0.2727034]
[1750321239538,0.4639696,105020.0,105010.0,0.28222593]
[1750321239737,0.2639696,105020.0,105010.0,0.28222593]
[1750321239999,0.4639696,105020.0,105010.0,0.28222593]
[1750321240177,0.2639696,105020.0,105010.0,0.28222593]
[1750321240383,0.24110074,105020.0,105010.0,0.28222593]
[1750321240545,0.2639561,105020.0,105010.0,0.28222593]
[1750321240753,0.2639561,105020.0,105010.0,0.2727034]
[1750321240989,0.2639561,105020.0,105010.0,0.28222593]
[1750321241191,0.24110074,105020.0,105010.0,0.28222593]
[1750321241754,0.24110074,105020.0,105010.0,0.29174837]
[1750321243077,0.26018116,105020.0,105010.0,0.29174837]
[1750321243975,0.25062107,105020.0,105010.0,0.29174837]
[1750321244795,0.45062107,105020.0,105010.0,0.29174837]
[1750321245016,0.25062107,105020.0,105010.0,0.29174837]
[1750321247849,0.25062107,105020.0,105010.0,0.30127072]
[1750321248728,0.231616,105020.0,105010.0,0.30127072]
[1750321248956,0.26018034,105020.0,105010.0,0.30127026]
[1750321249185,0.26970215,105020.0,105010.0,0.30127026]
[1750321249416,0.26018034,105020.0,105010.0,0.30127026]
[1750321249870,0.25065862,105020.0,105010.0,0.30127026]
[1750321250099,0.26018025,105020.0,105010.0,0.30127026]
[1750321250578,0.22204262,105020.0,105010.0,0.30127026]
[1750321251048,0.02204253,105020.0,105010.0,0.30127026]
[1750321251492,0.22204253,105020.0,105010.0,0.30127026]
[1750321251706,0.02204253,105020.0,105010.0,0.30127026]
[1750321251923,0.22204253,105020.0,105010.0,0.30127026]
[1750321252141,0.23156407,105020.0,105010.0,0.30127026]
[1750321252350,0.22204253,105020.0,105010.0,0.30127026]
[1750321252556,0.03156407,105020.0,105010.0,0.30127026]
[1750321252766,0.02204253,105020.0,105010.0,0.30127026]
[1750321252984,0.23156407,105020.0,105010.0,0.30127026]
[1750321253238,0.02204253,105020.0,105010.0,0.30127026]
[1750321253660,0.21252117,105020.0,105010.0,0.30127026]
[1750321254109,0.22204253,105020.0,105010.0,0.30127026]
[1750321254553,0.02204253,105020.0,105010.0,0.30127026]
[1750321254973,0.22204253,105020.0,105010.0,0.30127026]
[1750321255662,0.04108597,105020.0,105010.0,0.30127026]